bitfinex/quotes_BTCUSD_20250428
["timestamp","ask_amount","ask_price","bid_price","bid_amount"]
[1745865262167,0.78436003,93991.0,93989.0,0.0008478]
[1745865262645,0.78836003,93991.0,93989.0,0.0008478]
[1745865262987,0.78436003,93991.0,93989.0,0.0008478]
[1745865263217,0.78736003,93991.0,93989.0,0.0008478]
[1745865264248,0.81715399,93991.0,93989.0,0.0008478]
[1745865264854,0.8682086,93991.0,93989.0,0.0008478]
[1745865265033,0.81715399,93991.0,93989.0,0.0008478]
[1745865266372,0.55279085,93989.0,93978.0,0.002]
[1745865266580,1.91278235,93989.0,93978.0,0.002]
[1745865266795,1.92354635,93989.0,93978.0,0.002]
[1745865266996,1.94338636,93989.0,93978.0,0.002]
[1745865267784,1.95084592,93989.0,93978.0,0.002]
[1745865268318,1.56714592,93989.0,93978.0,0.002]
[1745865268520,2.02514592,93989.0,93978.0,0.002]
[1745865268730,0.34,93988.0,93978.0,0.002]
[1745865268934,1.92888911,93988.0,93978.0,0.002]
[1745865269132,1.93634867,93988.0,93978.0,0.002]
[1745865269680,1.07810667,93988.0,93978.0,0.002]
[1745865270015,1.18499681,93988.0,93978.0,0.002]
[1745865270226,1.07810667,93988.0,93978.0,0.002]
[1745865270431,1.08110667,93988.0,93978.0,0.002]
[1745865271033,1.27709653,93988.0,93978.0,0.002]
[1745865272517,0.34,93979.0,93978.0,0.002]
[1745865272743,0.36979396,93979.0,93978.0,0.002]
[1745865272920,0.38963397,93979.0,93978.0,0.002]
[1745865273530,0.39709353,93979.0,93978.0,0.002]
[1745865273715,0.59909353,93979.0,93978.0,0.002]
[1745865275487,0.81190703,93979.0,93978.0,0.002]
[1745865275699,0.84400966,93979.0,93978.0,0.002]
[1745865275893,2.32517666,93979.0,93978.0,0.002]
[1745865276956,2.32317666,93979.0,93978.0,0.002]
[1745865277510,2.25084066,93979.0,93978.0,0.002]
[1745865277681,2.21484066,93979.0,93978.0,0.002]
[1745865278234,2.21784066,93979.0,93978.0,0.002]
[1745865278515,2.18573803,93979.0,93978.0,0.002]
[1745865278661,2.18273803,93979.0,93978.0,0.002]
[1745865278882,1.88934103,93979.0,93978.0,0.002]
[1745865279091,1.87296103,93979.0,93978.0,0.002]
[1745865279318,1.03750503,93979.0,93978.0,0.002]
[1745865279514,1.22550703,93979.0,93978.0,0.002]
[1745865280120,1.49340403,93979.0,93978.0,0.002]
[1745865283137,1.44900403,93979.0,93978.0,0.002]
[1745865284022,1.22550703,93979.0,93978.0,0.002]
[1745865284688,0.55281802,93977.0,93976.0,0.000848]
[1745865284893,0.99421198,93977.0,93976.0,0.000848]
[1745865285452,1.02151155,93977.0,93976.0,0.000848]
[1745865285920,1.02551155,93977.0,93976.0,0.000848]
[1745865286045,1.22551155,93977.0,93976.0,0.000848]
[1745865288072,1.32739365,93977.0,93976.0,0.000848]
[1745865288254,1.29759969,93977.0,93976.0,0.000848]
[1745865288439,1.22549212,93977.0,93976.0,0.000848]
[1745865288643,1.19571759,93977.0,93976.0,0.000848]
[1745865289309,1.22549462,93977.0,93976.0,0.000848]
[1745865293699,1.0126766,93977.0,93976.0,0.000848]
[1745865293924,1.0126766,93977.0,93976.0,0.048748]
[1745865294132,1.02549462,93977.0,93976.0,0.048748]
[1745865294332,0.61389462,93977.0,93976.0,0.048748]
[1745865298188,0.81389462,93977.0,93976.0,0.048748]
[1745865300584,0.6010766,93977.0,93976.0,0.048748]
[1745865301228,0.4010766,93977.0,93976.0,0.048748]
[1745865301729,0.3970766,93977.0,93976.0,0.048748]
[1745865301979,0.3990766,93977.0,93976.0,0.048748]
[1745865303984,0.61189462,93977.0,93976.0,0.048748]
[1745865304816,0.3990766,93977.0,93976.0,0.048748]
[1745865305199,0.61189462,93977.0,93976.0,0.048748]
[1745865306733,0.3990766,93977.0,93976.0,0.048748]
[1745865307142,0.61189462,93977.0,93976.0,0.048748]
[1745865307791,0.3990766,93977.0,93976.0,0.048748]
[1745865308398,0.61189462,93977.0,93976.0,0.048748]
[1745865308958,0.3990766,93977.0,93976.0,0.048748]
[1745865309572,0.0590766,93977.0,93976.0,0.20403814]
[1745865309773,0.03229477,93977.0,93976.0,0.20403814]
[1745865309977,0.02483521,93977.0,93976.0,0.20403814]
[1745865310150,0.02184001,93977.0,93976.0,0.41685843]
[1745865310743,0.01984001,93977.0,93976.0,0.41685843]
[1745865310944,0.01984001,93977.0,93976.0,0.41885843]
[1745865312700,0.01984001,93989.0,93978.0,0.0479]
[1745865312914,0.03728105,93988.0,93982.0,0.0972]
[1745865313130,0.03728105,93988.0,93983.0,0.0479]
[1745865313329,0.02982412,93987.0,93983.0,0.0479]
[1745865313548,0.04966413,93987.0,93983.0,0.0479]
[1745865313750,0.01984001,93986.0,93983.0,0.0479]
[1745865313933,0.04966413,93986.0,93983.0,0.0479]
[1745865314157,0.05712106,93985.0,93983.0,0.0479]
[1745865314357,0.02982412,93984.0,93983.0,0.0479]
[1745865314565,0.02729694,93985.0,93983.0,0.0479]
[1745865314748,0.01984001,93984.0,93983.0,0.0479]
[1745865315058,0.04965938,93984.0,93983.0,0.0479]
[1745865315283,0.01984001,93984.0,93983.0,0.0479]
[1745865315730,0.02729694,93984.0,93983.0,0.0479]
[1745865316202,0.05711489,93984.0,93983.0,0.0479]
[1745865316379,0.02729694,93984.0,93983.0,0.0479]
[1745865316520,0.05711489,93984.0,93983.0,0.0489]
[1745865317169,0.02729694,93984.0,93983.0,0.0489]
[1745865319370,0.03028636,93984.0,93983.0,0.0489]
[1745865325494,0.02729694,93984.0,93983.0,0.0489]
[1745865325868,0.03028636,93984.0,93983.0,0.0489]
[1745865331430,0.03743465,93984.0,93983.0,0.0489]
[1745865333663,0.25023682,93984.0,93983.0,0.001]
[1745865333893,0.59023682,93984.0,93983.0,0.001]
[1745865334041,0.79023682,93984.0,93983.0,0.001]
[1745865334438,0.8200368,93984.0,93983.0,0.001]
[1745865334646,0.21281701,93978.0,93976.0,0.050448]
[1745865334847,0.23265803,93977.0,93976.0,0.050448]
[1745865335095,0.24280845,93977.0,93976.0,0.050448]
[1745865335419,0.02999043,93977.0,93976.0,0.050448]
[1745865336289,0.02999043,93977.0,93976.0,0.030448]
[1745865336290,0.03744736,93977.0,93976.0,0.030448]
[1745865337183,0.03744736,93977.0,93976.0,0.13733814]
[1745865338023,0.02729694,93977.0,93976.0,0.13733814]
[1745865339048,0.02729694,93977.0,93976.0,0.39715843]
[1745865345253,0.02729694,93977.0,93976.0,0.41169928]
[1745865345473,0.01984001,93977.0,93976.0,0.41970533]
[1745865346106,0.01984001,93992.0,93991.0,0.30948633]
[1745865346304,0.01984001,93992.0,93991.0,0.50837647]
[1745865346795,0.02,94002.0,94001.0,0.21276369]
[1745865347009,0.02,94002.0,94001.0,0.31965383]
[1745865347223,0.05728268,94002.0,94001.0,0.31965383]
[1745865347440,0.07715431,94002.0,94001.0,0.31965383]
[1745865347705,0.04732342,94002.0,94001.0,0.31965383]
[1745865348519,0.02732342,94002.0,94001.0,0.31965383]
[1745865348746,0.02732342,94002.0,94001.0,0.41635383]
[1745865348986,0.01987163,94002.0,94001.0,0.43089468]
[1745865349182,0.01987163,94004.0,94003.0,0.21275916]
[1745865349403,0.01987163,94004.0,94003.0,0.4136493]
[1745865349926,0.01987163,94014.0,94003.0,0.4136493]
[1745865350141,0.01987163,94013.0,94004.0,0.10689014]
[1745865350328,0.01987163,94013.0,94004.0,0.19889014]
[1745865350558,0.01987163,94012.0,94004.0,0.19889014]
[1745865350748,0.01987163,94012.0,94004.0,0.41164704]
[1745865350954,0.01987163,94011.0,94004.0,0.41164704]
[1745865351513,0.01987163,94014.0,94004.0,0.41164704]
[1745865352156,0.01987163,94013.0,94004.0,0.41164704]
[1745865352402,0.01987163,94013.0,94004.0,0.46204704]
[1745865352715,0.01987163,94015.0,94004.0,0.46204704]
[1745865354131,0.000848,94016.0,94004.0,0.46204704]
[1745865354962,0.02071963,94016.0,94004.0,0.46204704]
[1745865355597,0.000848,94016.0,94004.0,0.46204704]
[1745865360712,0.000848,94016.0,94004.0,0.50734704]
[1745865361367,0.000848,94016.0,94004.0,0.93298789]
[1745865362248,0.000848,94016.0,94004.0,0.93098789]
[1745865362680,0.000848,94016.0,94004.0,0.93498789]
[1745865363120,0.000848,94016.0,94004.0,0.94589497]
[1745865363341,0.000848,94016.0,94004.0,0.95380108]
[1745865370046,1e-08,94005.0,94004.0,0.95380108]
[1745865371342,1e-08,94005.0,94004.0,1.29380108]
[1745865371542,0.000848,94016.0,94015.0,0.32247286]
[1745865371747,0.000848,94016.0,94015.0,0.429363]
[1745865372266,0.000848,94026.0,94021.0,0.31905928]
[1745865372622,0.00091591,94022.0,94021.0,0.83704942]
[1745865374416,0.00091591,94022.0,94021.0,0.83904942]
[1745865378636,0.000848,94026.0,94025.0,0.32305023]
[1745865378785,0.000848,94030.0,94025.0,0.32305023]
[1745865378786,1e-08,94030.0,94029.0,0.32384118]
[1745865378987,1e-08,94030.0,94029.0,0.43073132]
[1745865379762,1e-08,94030.0,94029.0,0.43499132]
[1745865381000,1e-08,94030.0,94029.0,0.43699132]
[1745865381633,1e-08,94030.0,94029.0,0.85590131]
[1745865382366,1.258e-05,94035.0,94034.0,0.32222987]
[1745865382573,0.000848,94060.0,94042.0,0.21267093]
[1745865382855,0.000848,94060.0,94042.0,0.84202801]
[1745865382856,0.00091611,94043.0,94042.0,0.84202801]
[1745865383058,0.00091611,94043.0,94042.0,0.83990192]
[1745865383216,0.00091611,94043.0,94042.0,0.84416092]
[1745865385738,0.00191611,94043.0,94042.0,0.85743661]
[1745865386119,0.001,94043.0,94042.0,0.85743661]
[1745865386314,0.001,94043.0,94042.0,0.85731086]
[1745865386667,0.000848,94060.0,94045.0,0.321005]
[1745865386778,0.000848,94060.0,94045.0,0.51977514]
[1745865386982,0.000848,94060.0,94045.0,0.53474729]
[1745865387701,0.000848,94060.0,94050.0,0.22719369]
[1745865387904,0.000848,94060.0,94050.0,0.33408383]
[1745865388140,0.000848,94060.0,94050.0,0.7597312]
[1745865392615,0.000848,94060.0,94050.0,0.8548312]
[1745865394134,0.000848,94060.0,94054.0,0.22718465]
[1745865394353,0.000848,94060.0,94054.0,0.38217479]
[1745865394815,0.000848,94060.0,94054.0,0.38643379]
[1745865395234,0.0018478,94055.0,94054.0,0.38643379]
[1745865395659,0.001,94055.0,94054.0,0.38643379]
[1745865395896,0.000848,94060.0,94058.0,0.2271756]
[1745865396126,0.000848,94060.0,94058.0,0.33406574]
[1745865396335,0.000848,94060.0,94058.0,0.43386574]
[1745865397925,0.000848,94060.0,94058.0,0.44608133]
[1745865397926,0.006,94059.0,94058.0,0.44608133]
[1745865398656,0.004,94059.0,94058.0,0.44608133]
[1745865399963,0.004,94059.0,94058.0,0.85718133]
[1745865401671,0.004,94059.0,94058.0,1.17630133]
[1745865407047,0.004,94059.0,94058.0,1.18055933]
[1745865412026,0.004,94059.0,94058.0,1.27239933]
[1745865412457,0.004,94059.0,94058.0,1.29228816]
[1745865413631,0.004,94059.0,94058.0,1.29528816]
[1745865414034,0.004,94059.0,94058.0,1.24538816]
[1745865414272,0.004,94059.0,94058.0,1.13365933]
[1745865414511,0.004,94059.0,94058.0,1.22549933]
[1745865418785,0.004,94059.0,94058.0,1.27299933]
[1745865419429,0.004,94059.0,94058.0,1.22549933]
[1745865421585,0.004,94059.0,94058.0,1.29170541]
[1745865423751,0.000424,94066.0,94065.0,0.22715978]
[1745865423888,0.000424,94066.0,94065.0,0.79444992]
[1745865424289,1e-08,94068.0,94067.0,0.22715526]
[1745865424496,1e-08,94068.0,94067.0,0.76505148]
[1745865425715,1e-08,94068.0,94067.0,0.81095148]
[1745865426487,1e-08,94068.0,94067.0,0.85775148]
[1745865427305,1e-08,94068.0,94067.0,0.85975148]
[1745865428273,1e-08,94068.0,94067.0,0.95155148]
[1745865432922,1e-08,94068.0,94067.0,0.95580848]
[1745865433557,1e-08,94068.0,94067.0,1.29580848]
[1745865435861,1e-08,94068.0,94067.0,1.34580848]
[1745865436713,1e-08,94068.0,94067.0,1.29580848]
[1745865436921,1e-08,94068.0,94067.0,1.34580848]
[1745865437576,1e-08,94068.0,94067.0,1.34380848]
[1745865437822,1e-08,94068.0,94067.0,1.34680848]
[1745865439119,1e-08,94068.0,94067.0,1.25200848]
[1745865439323,1e-08,94068.0,94067.0,1.34376848]
[1745865439529,1e-08,94068.0,94067.0,1.33951148]
[1745865451699,1e-08,94068.0,94067.0,1.65851148]
[1745865453061,1e-08,94068.0,94067.0,1.6386054]
[1745865463599,1e-08,94068.0,94067.0,1.5886054]
[1745865463799,1e-08,94068.0,94067.0,1.6386054]
[1745865465918,1e-08,94068.0,94067.0,1.5886054]
[1745865466537,1e-08,94068.0,94067.0,1.4509454]
[1745865466747,1e-08,94068.0,94067.0,1.4959054]
[1745865466947,1e-08,94068.0,94067.0,1.1559054]
[1745865476774,1e-08,94068.0,94067.0,1.0641454]
[1745865476911,1e-08,94068.0,94067.0,1.1559054]
[1745865478504,1e-08,94068.0,94067.0,1.1589054]
[1745865487237,1e-08,94068.0,94067.0,1.2086054]
[1745865492692,1e-08,94068.0,94067.0,1.1168454]
[1745865492905,1e-08,94068.0,94067.0,1.2086054]
[1745865495370,1e-08,94068.0,94067.0,1.1589054]
[1745865495547,1e-08,94068.0,94067.0,1.0671454]
[1745865495753,1e-08,94068.0,94067.0,1.1589054]
[1745865504050,1e-08,94068.0,94067.0,1.2039054]
[1745865512099,1e-08,94068.0,94067.0,1.22382321]
[1745865518048,1e-08,94068.0,94067.0,1.61322321]
[1745865518816,1e-08,94068.0,94067.0,1.61422321]
[1745865520772,1e-08,94068.0,94067.0,1.61122321]
[1745865520978,1e-08,94068.0,94067.0,1.61118321]
[1745865522477,0.002,94085.0,94084.0,0.21257599]
[1745865522615,0.00213679,94085.0,94084.0,0.79160698]
[1745865522814,0.00213679,94085.0,94084.0,0.81152479]
[1745865523274,0.00213679,94085.0,94084.0,0.82196529]
[1745865524164,0.00213679,94085.0,94084.0,0.82496529]
[1745865525301,0.00213679,94085.0,94084.0,0.83293315]
[1745865533686,0.00213679,94085.0,94084.0,0.92461315]
[1745865537654,0.00213679,94085.0,94084.0,1.24361315]
[1745865538662,0.00213679,94085.0,94084.0,1.10543315]
[1745865538821,0.00213679,94085.0,94084.0,1.19711315]
[1745865547001,0.00213679,94085.0,94084.0,1.0908923]
[1745865547192,0.00213679,94085.0,94084.0,1.1825723]
[1745865547397,0.00213679,94085.0,94084.0,1.19711315]
[1745865551121,0.00213679,94085.0,94084.0,1.10543315]
[1745865551326,0.00213679,94085.0,94084.0,1.58471315]
[1745865551487,0.0004237,94097.0,94096.0,0.22708973]
[1745865551720,0.0008795,94097.0,94096.0,0.33397987]
[1745865552142,0.0008795,94097.0,94096.0,0.44557768]
[1745865555274,0.0008795,94097.0,94096.0,0.85667768]
[1745865559140,0.0008795,94097.0,94096.0,0.85665977]
[1745865563918,0.0008795,94097.0,94096.0,0.90625977]
[1745865565745,0.0008484,94100.0,94099.0,0.22708295]
[1745865565961,0.0008484,94100.0,94099.0,0.33397309]
[1745865566395,0.0008484,94100.0,94099.0,0.35387299]
[1745865567123,0.0008484,94100.0,94099.0,0.76497299]
[1745865573880,0.0008484,94100.0,94099.0,1.08393299]
[1745865574845,0.0004237,94106.0,94105.0,0.2270694]
[1745865575078,0.0004237,94106.0,94105.0,0.74505954]
[1745865575631,0.0004237,94106.0,94105.0,0.76495944]
[1745865576858,0.0014237,94106.0,94105.0,0.76495944]
[1745865577333,0.00148664,94106.0,94105.0,0.76495944]
[1745865582498,0.00148664,94106.0,94105.0,0.85663944]
[1745865594050,0.00148664,94106.0,94105.0,0.90553944]
[1745865594309,1e-08,94106.0,94105.0,0.95103944]
[1745865594865,1e-08,94106.0,94105.0,1.29103944]
[1745865596122,1e-08,94106.0,94105.0,1.29303944]
[1745865596907,1e-08,94106.0,94105.0,1.29103944]
[1745865599197,0.0008484,94117.0,94115.0,0.01454085]
[1745865599397,0.0008484,94117.0,94116.0,0.12143099]
[1745865599803,0.0008484,94117.0,94116.0,0.3339347]
[1745865600006,0.0008484,94117.0,94116.0,0.3538346]
[1745865600815,0.00830436,94117.0,94116.0,0.3538346]
[1745865601026,0.0008484,94117.0,94116.0,0.3538346]
[1745865601430,0.00830436,94117.0,94116.0,0.3538346]
[1745865602037,0.00830436,94117.0,94116.0,0.3568346]
[1745865603136,0.00830436,94117.0,94116.0,0.36487549]
[1745865605212,0.00830436,94117.0,94116.0,0.77597548]
[1745865605588,0.0008484,94117.0,94116.0,0.77597548]
[1745865609518,0.0008484,94117.0,94116.0,1.09485548]
[1745865611918,0.0008484,94117.0,94116.0,1.18645548]
[1745865621850,0.0008484,94117.0,94116.0,1.21837148]
[1745865622583,0.0008484,94117.0,94116.0,1.55837148]
[1745865634475,0.0008484,94117.0,94116.0,1.46677148]
[1745865634704,0.0008484,94117.0,94116.0,1.55833148]
[1745865644464,0.0008484,94117.0,94116.0,1.46677148]
[1745865644691,0.0008484,94117.0,94116.0,1.55833148]
[1745865645388,1.49633655,94122.0,94120.0,0.35454085]
[1745865645619,0.38196561,94122.0,94121.0,0.77082341]
[1745865645832,0.38196561,94122.0,94121.0,0.79072331]
[1745865646257,0.38196561,94122.0,94121.0,0.82263631]
[1745865646470,0.38196561,94122.0,94121.0,0.91419631]
[1745865649175,0.38196561,94122.0,94121.0,1.3252963]
[1745865649389,0.000424,94144.0,94134.0,0.21246308]
[1745865649605,0.00256055,94135.0,94134.0,0.79545605]
[1745865649810,0.00256055,94135.0,94134.0,0.80586383]
[1745865650012,0.00256055,94135.0,94134.0,0.81011883]
[1745865650215,0.00256055,94135.0,94134.0,0.83001873]
[1745865650444,0.00256055,94135.0,94134.0,0.78181873]
[1745865650657,0.00256055,94135.0,94134.0,0.78381873]
[1745865650877,0.05066055,94135.0,94134.0,0.13304504]
[1745865651097,0.05066055,94135.0,94134.0,0.22035004]
[1745865651341,0.0607203,94135.0,94134.0,0.22035004]
[1745865651572,0.05066055,94135.0,94134.0,0.22035004]
[1745865652872,0.05066055,94135.0,94134.0,0.20045014]
[1745865653101,0.05066055,94135.0,94134.0,0.19845014]
[1745865654004,0.05066055,94135.0,94134.0,0.19945014]
[1745865658354,0.05066055,94135.0,94134.0,0.10789014]
[1745865658561,0.05066055,94135.0,94134.0,0.19941014]
[1745865658767,0.0607203,94135.0,94134.0,0.19941014]
[1745865659614,0.0607203,94135.0,94134.0,0.19841014]
[1745865660062,0.0607203,94135.0,94134.0,0.10789014]
[1745865660274,0.0607203,94135.0,94134.0,0.19941014]
[1745865660483,0.0607203,94135.0,94134.0,0.19841014]
[1745865660484,0.27318112,94135.0,94134.0,0.19841014]
[1745865660918,0.27318112,94135.0,94134.0,0.19941014]
[1745865661336,0.27318112,94135.0,94134.0,0.19841014]
[1745865661680,0.0607203,94135.0,94134.0,0.19841014]
[1745865662364,0.2607203,94135.0,94134.0,0.19841014]
[1745865662999,0.47318112,94135.0,94134.0,0.19841014]
[1745865663204,0.2607203,94135.0,94134.0,0.19841014]
[1745865663587,0.47318112,94135.0,94134.0,0.19841014]
[1745865664032,0.2607203,94135.0,94134.0,0.19841014]
[1745865670787,0.21248791,94123.0,94122.0,0.09152]
[1745865671003,0.57368791,94123.0,94122.0,0.09152]
[1745865671216,0.62974928,94123.0,94122.0,0.09152]
[1745865671423,0.25900146,94117.0,94116.0,0.31888]
[1745865671630,0.26872596,94117.0,94116.0,0.42577014]
[1745865672047,0.0562245,94117.0,94116.0,0.42577014]
[1745865673392,0.0572245,94117.0,94116.0,0.31888]
[1745865673612,0.26972596,94117.0,94116.0,0.31888]
[1745865674223,0.46972596,94117.0,94116.0,0.31888]
[1745865677129,0.2572245,94117.0,94116.0,0.31888]
[1745865677850,0.46972596,94117.0,94116.0,0.31888]
[1745865678047,0.2572245,94117.0,94116.0,0.31888]
[1745865682668,0.46972596,94117.0,94116.0,0.31888]
[1745865682875,0.2572245,94117.0,94116.0,0.31888]
[1745865683290,0.46972596,94117.0,94116.0,0.31888]
[1745865684294,0.80972596,94117.0,94116.0,0.31888]
[1745865685414,0.5972245,94117.0,94116.0,0.31888]
[1745865685621,0.80972596,94117.0,94116.0,0.31888]
[1745865685826,0.5972245,94117.0,94116.0,0.31888]
[1745865686762,0.5507245,94117.0,94111.0,0.09156]
[1745865686978,0.5507245,94117.0,94112.0,0.10689014]
[1745865688221,0.3507245,94117.0,94112.0,0.10689014]
[1745865688463,0.3497245,94117.0,94112.0,0.10689014]
[1745865688803,0.3507245,94117.0,94112.0,0.10689014]
[1745865689008,0.2,94113.0,94112.0,0.10689014]
[1745865689311,0.20964014,94113.0,94112.0,0.10689014]
[1745865691208,0.00964014,94113.0,94112.0,0.10689014]
[1745865692220,0.20964014,94113.0,94112.0,0.10689014]
[1745865693108,0.20964014,94113.0,94112.0,0.19841014]
[1745865693720,0.20964014,94113.0,94112.0,0.19840875]
[1745865699941,0.20964014,94113.0,94112.0,0.10688875]
[1745865702805,0.42215063,94113.0,94112.0,0.10688875]
[1745865703928,0.42315063,94113.0,94112.0,0.10688875]
[1745865708389,0.21064014,94113.0,94112.0,0.10688875]
[1745865711635,0.20964014,94113.0,94112.0,0.10688875]
[1745865716151,0.20964014,94113.0,94112.0,0.15278875]
[1745865717278,0.00964014,94113.0,94112.0,0.15278875]
[1745865717613,0.2,94115.0,94112.0,0.15278875]
[1745865717827,0.00963926,94113.0,94112.0,0.15278875]
[1745865718048,0.2,94115.0,94112.0,0.15278875]
[1745865718256,0.00963926,94113.0,94112.0,0.24426875]
[1745865718461,0.2,94114.0,94112.0,0.24426875]
[1745865718680,0.00963926,94113.0,94112.0,0.24426875]
[1745865719333,0.20963926,94113.0,94112.0,0.24426875]
[1745865725840,0.20963926,94113.0,94112.0,0.15278875]
[1745865726100,0.20963926,94113.0,94112.0,0.10688875]
[1745865727326,0.21063926,94113.0,94112.0,0.10688875]
[1745865727528,0.42314975,94113.0,94112.0,0.10688875]
[1745865727871,0.76314975,94113.0,94112.0,0.10688875]
[1745865728068,0.55063926,94113.0,94112.0,0.10688875]
[1745865728470,0.76314975,94113.0,94112.0,0.10688875]
[1745865729177,0.55063926,94113.0,94112.0,0.10688875]
[1745865737476,0.76314975,94113.0,94112.0,0.10688875]
[1745865737870,0.21251726,94110.0,94109.0,0.09148]
[1745865738081,0.21251726,94110.0,94109.0,0.19837014]
[1745865738458,0.22215161,94110.0,94109.0,0.19837014]
[1745865738852,0.00963435,94110.0,94109.0,0.21829417]
[1745865739181,0.2,94110.0,94109.0,0.21829417]
[1745865739405,0.20963435,94110.0,94109.0,0.21829417]
[1745865740915,0.42215161,94110.0,94109.0,0.21829417]
[1745865741126,0.20963435,94110.0,94109.0,0.21829417]
[1745865743429,0.20963435,94110.0,94109.0,0.12681417]
[1745865747069,0.20963435,94110.0,94109.0,0.10689014]
[1745865747470,0.42215161,94110.0,94109.0,0.10689014]
[1745865748083,0.55251952,94109.0,94108.0,0.09148]
[1745865748287,0.56215707,94109.0,94108.0,0.09148]
[1745865749155,0.76215707,94109.0,94108.0,0.09148]
[1745865751587,0.76415707,94109.0,94108.0,0.09148]
[1745865752672,0.55163755,94109.0,94108.0,0.09148]
[1745865753137,0.76415707,94109.0,94108.0,0.09148]
[1745865755128,0.3506262,94107.0,94101.0,0.0995]
[1745865755313,0.00959496,94106.0,94105.0,0.09144]
[1745865755484,0.22212126,94106.0,94105.0,0.19833014]
[1745865756311,0.00959496,94106.0,94105.0,0.19833014]
[1745865757404,0.20959496,94106.0,94105.0,0.19833014]
[1745865757997,0.21059496,94106.0,94105.0,0.19833014]
[1745865758299,0.42312126,94106.0,94105.0,0.19833014]
[1745865759185,0.21059496,94106.0,94105.0,0.19833014]
[1745865759401,0.22109362,94106.0,94105.0,0.19833014]
[1745865761102,0.21059496,94106.0,94105.0,0.19833014]
[1745865761284,0.21059496,94106.0,94105.0,0.29353014]
[1745865761705,0.21059496,94106.0,94105.0,0.31345251]
[1745865762129,0.01059496,94106.0,94105.0,0.31345251]
[1745865763764,0.01059496,94106.0,94105.0,0.31345251]
[1745865783328,0.01059496,94106.0,94105.0,0.26375251]
[1745865803461,0.22312126,94106.0,94105.0,0.15686237]
[1745865803669,0.22312126,94106.0,94105.0,0.01992237]
[1745865803917,0.56312126,94106.0,94105.0,0.01992237]
[1745865804087,0.76312126,94106.0,94105.0,0.01992237]
[1745865804772,0.21252855,94105.0,94104.0,0.0914]
[1745865804973,0.22214101,94105.0,94104.0,0.19829014]
[1745865805933,0.22314101,94105.0,94104.0,0.19829014]
[1745865806130,0.42314101,94105.0,94104.0,0.19829014]
[1745865815327,0.21061246,94105.0,94104.0,0.19829014]
[1745865818726,0.01061246,94105.0,94104.0,0.19829014]
[1745865822217,0.21061246,94105.0,94104.0,0.19829014]
[1745865822918,0.42314101,94105.0,94104.0,0.19829014]
[1745865824991,0.21061246,94105.0,94104.0,0.19829014]
[1745865825863,0.42314101,94105.0,94104.0,0.19829014]
[1745865826282,0.21061246,94105.0,94104.0,0.19829014]
[1745865827744,0.42314101,94105.0,94104.0,0.19829014]
[1745865829589,0.44302875,94105.0,94104.0,0.19829014]
[1745865830492,0.44302875,94105.0,94104.0,0.10689014]
[1745865831762,0.45048832,94105.0,94104.0,0.10689014]
[1745865833016,0.40501194,94105.0,94104.0,0.10689014]
[1745865835223,0.44686455,94105.0,94104.0,0.10689014]
[1745865837045,0.34,94104.0,94094.0,0.0496]
[1745865837241,0.21255114,94095.0,94094.0,0.0496]
[1745865837441,0.21255114,94095.0,94094.0,0.19827308]
[1745865837641,0.21953208,94095.0,94094.0,0.19827308]
[1745865837770,0.02686868,94095.0,94094.0,0.19827308]
[1745865837978,0.03432825,94095.0,94094.0,0.19827308]
[1745865838186,0.23432825,94095.0,94094.0,0.19827308]
[1745865840108,0.23532825,94095.0,94094.0,0.19827308]
[1745865846629,0.23532825,94095.0,94094.0,0.24777308]
[1745865846835,0.23532825,94095.0,94094.0,0.29543308]
[1745865847053,0.22088774,94095.0,94094.0,0.29543308]
[1745865847260,0.02088774,94095.0,94094.0,0.29543308]
[1745865847509,0.02786868,94095.0,94094.0,0.29543308]
[1745865851815,0.03532825,94095.0,94094.0,0.29543308]
[1745865852597,0.02786868,94095.0,94094.0,0.29543308]
[1745865854093,0.03532825,94095.0,94094.0,0.29543308]
[1745865855109,0.02786868,94095.0,94094.0,0.29543308]
[1745865856214,0.03532825,94095.0,94094.0,0.29543308]
[1745865857289,0.03532825,94095.0,94094.0,0.24773308]
[1745865865435,0.03532825,94095.0,94094.0,0.19823308]
[1745865866260,0.23532825,94095.0,94094.0,0.19823308]
[1745865866451,0.44787939,94095.0,94094.0,0.19823308]
[1745865866665,0.23532825,94095.0,94094.0,0.19823308]
[1745865875567,0.23533239,94095.0,94094.0,0.19823308]
[1745865878189,0.03533239,94095.0,94094.0,0.19823308]
[1745865882019,0.03533239,94095.0,94094.0,0.29393308]
[1745865883529,0.02835145,94095.0,94094.0,0.29393308]
[1745865889872,0.03527258,94095.0,94094.0,0.29393308]
[1745865892619,0.02835145,94095.0,94094.0,0.29393308]
[1745865895503,0.03527258,94095.0,94094.0,0.29393308]
[1745865904309,0.03527258,94095.0,94094.0,0.50648648]
[1745865904507,0.03527258,94095.0,94094.0,0.29393308]
[1745865904703,0.02835145,94095.0,94094.0,0.29393308]
[1745865905565,0.02089188,94095.0,94094.0,0.29385308]
[1745865906582,0.02089188,94095.0,94094.0,0.15595308]
[1745865906729,0.02089188,94095.0,94094.0,0.24715308]
[1745865907115,0.02835188,94095.0,94094.0,0.24715308]
[1745865908386,0.02835188,94095.0,94094.0,0.29545308]
[1745865909127,0.02089188,94095.0,94094.0,0.29545308]
[1745865910361,0.02089188,94095.0,94094.0,0.50800648]
[1745865910813,0.001,94095.0,94094.0,0.50800648]
[1745865913508,0.001,94095.0,94094.0,0.29545308]
[1745865913707,0.001,94095.0,94094.0,0.15595308]
[1745865914090,0.001,94095.0,94094.0,0.24715308]
[1745865914295,0.02651529,94095.0,94094.0,0.24715308]
[1745865915276,0.02087568,94095.0,94094.0,0.24715308]
[1745865917675,0.02649883,94095.0,94094.0,0.24715308]
[1745865917906,0.03395217,94095.0,94094.0,0.24715308]
[1745865918431,0.03395217,94095.0,94094.0,0.19815308]
[1745865918640,0.03395217,94095.0,94094.0,0.19410727]
[1745865919250,0.23395217,94095.0,94094.0,0.19410727]
[1745865925613,0.03395217,94095.0,94094.0,0.19410727]
[1745865930324,0.02649883,94095.0,94094.0,0.19410727]
[1745865930622,0.02649883,94095.0,94094.0,0.24210727]
[1745865931034,0.00662315,94095.0,94094.0,0.24210727]
[1745865931236,0.00662315,94095.0,94094.0,0.45466067]
[1745865931776,0.001,94095.0,94094.0,0.45466067]
[1745865935212,0.001,94095.0,94094.0,0.24210727]
[1745865935692,0.001,94095.0,94094.0,0.45466067]
[1745865936253,0.001,94095.0,94094.0,0.24210727]
[1745865936459,0.001,94095.0,94094.0,0.15090727]
[1745865936661,0.001,94095.0,94094.0,0.24202727]
[1745865938741,0.00661487,94095.0,94094.0,0.24202727]
[1745865938896,0.001,94095.0,94094.0,0.24202727]